Cogmind - Beta 9.6 @@@ ROGUE MODE // 2020.08.01 @ 00:39:05 Player: Torako Result: Destroyed by as-74440 with Assembled Maul Performance ------------- Evolutions (0) 0 Regions Visited (2) 400 Robots Destroyed (15) 75 Value Destroyed (416) 416 Prototype IDs (0) 0 Alien Tech Used (0) 0 Bonus (0) 0 TOTAL SCORE: 891 Bonus ------- None Cogmind --------- Core Integrity 0/250 Matter 300/300 Energy 100/100 System Corruption 10% Temperature Cool (0) Movement Core (50) Location -10/Mines Parts ------- > --- POWER (1) -------- (None) > --- PROPULSION (2) --- (None) > --- UTILITY (2) ------ (None) > --- WEAPON (2) ------- (None) > --- INVENTORY (4) ---- Compact Wheel Compact Wheel High-capacity Storage Unit Small Laser Peak State ------------ > --- POWER ------------ Ion Engine > --- PROPULSION ------- Light Treads Light Treads > --- UTILITY ---------- High-capacity Storage Unit Light Armor Plating > --- WEAPON ----------- Small Laser Beam Cannon > --- INVENTORY -------- Ion Engine Ion Engine Aluminum Leg Aluminum Leg Small Storage Unit High-capacity Storage Unit High-capacity Storage Unit High-capacity Battery Targeting Computer Small Laser [Rating: 8] Favorites ----------- Power Ion Engine Engine Ion Engine Propulsion Light Treads Treads Light Treads Leg Aluminum Leg Wheel Wheel Utility Small Storage Unit Storage Small Storage Unit Protection Light Armor Plating Weapon Small Laser Energy Gun Small Laser Energy Cannon Beam Cannon Ballistic Gun Assault Rifle Build | -11 -10 -10 ------- Run | Scr Mat Min Slots Evolved . | . . . Power . | . . . Propulsion . | . . . Utility . | . . . Weapon . | . . . Parts Attached 12 | . 12 . Power 2 | . 2 . Engine 2 | . 2 . Core . | . . . Reactor . | . . . Propulsion 3 | . 3 . Treads 2 | . 2 . Leg . | . . . Wheel 1 | . 1 . Hover . | . . . Flight . | . . . Utility 3 | . 3 . Device . | . . . Storage 2 | . 2 . Processor . | . . . Hackware . | . . . Protection 1 | . 1 . Artifact . | . . . Weapon 4 | . 4 . Energy Gun 3 | . 3 . Energy Cannon 1 | . 1 . Ballistic Gun . | . . . Ballistic Cannon . | . . . Launcher . | . . . Special Weapon . | . . . Impact Weapon . | . . . Slashing Weapon . | . . . Piercing Weapon . | . . . Special Melee Weapon . | . . . Unidentified Prototypes . | . . . Parts Lost 13 | . 9 4 Power 2 | . 2 . Propulsion 4 | . 3 1 Utility 1 | . . 1 Weapon 6 | . 4 2 Highest Loss Streak 4 | . 2 4 Average Slot Usage (%) 85 | . 90 73 Engine 12 | . 13 10 Treads 19 | . 19 20 Leg 2 | . 3 . Wheel 3 | . 4 . Storage 19 | . 23 10 Protection 6 | . 4 10 Energy Gun 9 | . 10 9 Energy Cannon 6 | . 4 9 Ballistic Gun 4 | . 6 . Naked Turns 85 | . . 85 Heaviest Build 45 | 13 45 44 Greatest Support 40 | 20 40 40 Greatest Overweight (x) 1 | . 1 1 Average Overweight (x) . | . . . Largest Inventory Capacity 12 | 6 12 12 Average Capacity 8 | 6 7 10 Most Carried 10 | 6 10 10 Average Carried 5 | 6 4 8 Final Capacity 12 | 6 12 4 Final Carried 10 | 6 10 4 Class Distribution -------------------- 100% | Mutant Dominant Class ---------------- Mutant | -10/Materials Mutant | -10/Mines Resources | -11 -10 -10 ----------- Run | Scr Mat Min Matter Collected 348 | 200 148 . Remotely . | . . . Salvage Created 552 | . 502 50 Parts 21 | . 21 . Haulers Intercepted . | . . . Recyclers Shooed . | . . . Parts Field Recycled . | . . . Retrieved Matter . | . . . Parts Self-Destructed . | . . . Prevented . | . . . Kills | -11 -10 -10 ------- Run | Scr Mat Min Combat Hostiles Destroyed 14 | . 11 3 Melee 1 | . 1 . Guns 11 | . 10 1 Cannons 2 | . . 2 Classes Destroyed 3 | . 2 1 Watcher 1 | . 1 . Grunt 11 | . 11 . Assembled 3 | . . 3 Best Kill Streak 3 | . 3 2 Combat Bots Only 3 | . 3 2 Max Kills in Single Turn 1 | . 1 1 Gunslinging . | . . . Exploded . | . . . Melee 1 | . 1 . Uniques/NPCs Destroyed . | . . . Combat | -11 -10 -10 -------- Run | Scr Mat Min Damage Taken 1372 | 3 930 439 Core 275 | . 131 144 Absorbed by Shields . | . . . Core Remaining (%) 100 | 100 . . Volleys Fired 75 | . 57 18 Largest 2 | . 2 2 Hottest 100 | . 100 100 Shots Fired 115 | . 90 25 Gun 93 | . 86 7 Cannon 22 | . 4 18 Launcher . | . . . Special . | . . . Kinetic 37 | . 37 . Thermal 78 | . 53 25 Explosive . | . . . Electromagnetic . | . . . Robot Hit Streak 14 | . 14 6 Robot Miss Streak 3 | . 3 2 Penetration Max . | . . . Secondary Targets 1 | . 1 . Max Gunslinging Chain 1 | . 1 . Shots Hit Robots 77 | . 61 16 Core Hits 35 | . 28 7 Critical Hits 1 | . 1 . Critical Kills . | . . . Critical Parts Destroyed 1 | . 1 . Melee Attacks . | . . . Impact . | . . . Slashing . | . . . Piercing . | . . . Sneak Attacks . | . . . Combat Hostiles . | . . . Follow-up Attacks . | . . . Damage Inflicted 1007 | 6 737 264 Guns 720 | . 666 54 Cannons 244 | . 34 210 Explosions . | . . . Melee . | . . . Ramming 43 | 6 37 . Kinetic 294 | . 294 . Thermal 670 | . 406 264 Explosive . | . . . Electromagnetic . | . . . Impact . | . . . Slashing . | . . . Piercing . | . . . Highest Corruption 10 | . . 10 Average Corruption 9 | . . 9 Corruption Purged . | . . . Effects 6 | . . 6 Message Errors 1 | . . 1 Energy Discharges 1 | . . 1 Data Loss (major) 2 | . . 2 Misdirections 2 | . . 2 Overload Shots . | . . . Overflow Damage 9 | . . 9 Projectiles 9 | . . 9 Explosions . | . . . Melee . | . . . Knockbacks . | . . . Impact . | . . . Kinetic . | . . . Secondary . | . . . Self-Inflicted Damage 3 | 3 . . Shots . | . . . Rammed 19 | 1 18 . Targets Rammed 19 | 1 18 . Kicked . | . . . Crushed . | . . . Highest Temperature 582 | . 167 582 Average Temperature 140 | . 51 321 Received Heat Transfer 613 | . 513 100 Effects 10 | . . 10 Shutdowns 4 | . . 4 Energy Bleed 1 | . . 1 Interference 1 | . . 1 Matter Decay 1 | . . 1 Damage (minor) 2 | . . 2 Damage (core) 1 | . . 1 Siege Activations . | . . . Robots Corrupted . | . . . Combat Hostiles . | . . . Parts Fried . | . . . Impact Corruptions . | . . . Robots Melted . | . . . Combat Hostiles . | . . . Parts Melted 1 | . 1 . Heat Transferred 1541 | . 972 569 Parts Sabotaged . | . . . Parts Stolen . | . . . Parts Stripped . | . . . Power Chain Reactions . | . . . Missiles Intercepted . | . . . Alert | -11 -10 -10 ------- Run | Scr Mat Min Peak Influence 163 | . 163 6 Average Influence 41 | . 61 3 Maximum Alert Level . | . . . Low Security (%) 100 | 100 100 100 Level 1 . | . . . Level 2 . | . . . Level 3 . | . . . Level 4 . | . . . Level 5 . | . . . High Security . | . . . Max Security . | . . . Squads Dispatched 3 | . 3 . Investigation 1 | . 1 . Extermination . | . . . Reinforcement 2 | . 2 . Assault . | . . . Garrison . | . . . Intercept . | . . . Construction Impeded . | . . . Haulers Reinforced . | . . . Stealth | -11 -10 -10 --------- Run | Scr Mat Min Distress Signals 1 | . 1 . Communications Jammed . | . . . Distress Signals . | . . . Times Spotted 41 | . 24 17 Peak Tracking Total 10 | . 4 10 Tactical Retreats 5 | . . 5 Traps | -11 -10 -10 ------- Run | Scr Mat Min Traps Triggered 1 | . 1 . Indirectly . | . . . Trap Hack Attempts . | . . . Triggered . | . . . Disarmed . | . . . Reprogrammed . | . . . Reused . | . . . Traps Extracted . | . . . Installed . | . . . Triggered . | . . . Machines | -11 -10 -10 ---------- Run | Scr Mat Min Machines Disabled . | . . . Max in Single Turn . | . . . Machines Sabotaged . | . . . Garrisons Compromised . | . . . Overloaded Fab Kills . | . . . Fab Network Shutdowns . | . . . Hacking | -11 -10 -10 --------- Run | Scr Mat Min Machines Accessed 8 | . 7 1 Terminals 6 | . 5 1 Fabricators . | . . . Repair Stations 1 | . 1 . Recycling Units 1 | . 1 . Scanalyzers . | . . . Garrison Access . | . . . Total Hacks 17 | . 15 2 Successful 9 | . 7 2 Failed 8 | . 8 . Catastrophic 4 | . 4 . Database Lockouts . | . . . Manual 7 | . 6 1 Terminals 12 | . 10 2 Fabricators . | . . . Repair Stations 3 | . 3 . Recycling Units 2 | . 2 . Scanalyzers . | . . . Garrison Access . | . . . Terminal Hacks 4 | . 2 2 Robot Analysis 2 | . 1 1 Patrol Status 1 | . . 1 Zone Layout 1 | . 1 . Fabricator Hacks . | . . . Repair Station Hacks 1 | . 1 . Scan Component 1 | . 1 . Recycling Unit Hacks 2 | . 2 . Report Inventory 1 | . 1 . Retrieve Components 1 | . 1 . Scanalyzer . | . . . Garrison Access Hacks . | . . . Unauthorized Hacks 2 | . 2 . Terminals 2 | . 2 . Track 1 | . 1 . Assimilate 1 | . 1 . Fabricators . | . . . Repair Stations . | . . . Recycling Units . | . . . Scanalyzers . | . . . Garrison Access . | . . . Data Cores Recovered . | . . . Used . | . . . Hacking Detections 7 | . 6 1 Full Trace Events 2 | . 2 . Feedback Events . | . . . Feedback Blocked . | . . . Robot Schematics Acquired . | . . . Robots Built . | . . . Matter . | . . . Time . | . . . Total Robot Build Rating . | . . . Part Schematics Acquired . | . . . Parts Built . | . . . Matter . | . . . Time . | . . . Total Part Build Rating . | . . . Parts Repaired . | . . . Time . | . . . Parts Recycled . | . . . Recycled Matter . | . . . Retrieved Matter . | . . . Retrieved Components 7 | . 7 . Parts Scanalyzed . | . . . Part Schematics Acquired . | . . . Parts Damaged . | . . . Bothacking | -11 -10 -10 ------------ Run | Scr Mat Min Used RIF Installer . | . . . Robots Hacked . | . . . Non-combat . | . . . Combat . | . . . Robot Hacks Applied . | . . . Relay Couplers Released . | . . . Robots Rewired . | . . . Allies Hacked . | . . . Hacks Repelled . | . . . Allies | -11 -10 -10 -------- Run | Scr Mat Min Total Allies . | . . . Largest Group . | . . . Highest-Rated Group . | . . . Highest-Rated Ally . | . . . Total Orders . | . . . Ally Attacks . | . . . Total Damage . | . . . Kills . | . . . Allies Corrupted . | . . . Allies Melted . | . . . Intel | -11 -10 -10 ------- Run | Scr Mat Min Robot Analysis Total 2 | . 1 1 Derelict Logs Recovered 1 | . . 1 Drone Launches . | . . . Drone Recoveries . | . . . Exploration | -11 -10 -10 ------------- Run | Scr Mat Min Turns Passed 1321 | 42 871 408 Spaces Moved 779 | 35 426 318 Core 170 | . . 170 Treads 469 | . 321 148 Legs 70 | 35 35 . Wheels 70 | . 70 . Hover . | . . . Flight . | . . . Fastest Speed 50 | 120 80 50 Average Speed 133 | 120 151 111 Slowest Speed 180 | 120 180 180 Overloaded Moves . | . . . Propulsion Burnouts . | . . . Robots Hopped . | . . . Cave-ins Triggered . | . . . Exploration Rate (%) 41 | 4 64 55 Regions Visited 2 Branch Regions 1 Pre-discovered Areas . | . . . Known Exits Taken . | . . . Unknown Exits Taken 2 | 1 1 . Scrap Searched . | . . . Spaces Dug . | . . . Terrain Destroyed . | . . . Melee . | . . . Projectile . | . . . AOE . | . . . Actions | -11 -10 -10 --------- Run | Scr Mat Min Total 932 | 35 550 347 Wait 29 | . 25 4 Move 777 | 34 425 318 Hop . | . . . Pick Up 13 | . 11 2 Fast Attach 3 | . 3 . Attach 8 | . 8 . Detach 1 | . 1 . Swap 1 | . 1 . Drop 6 | . 1 5 Fire 75 | . 57 18 Melee . | . . . Ram . | . . . Kick 1 | 1 . . Crush 18 | . 18 . Escape Stasis . | . . . Rewire . | . . . Trap . | . . . Miscellaneous . | . . . Route ------- -11/Scrapyard -10/Materials (discovered 3 exits: [*Mat x2] / *Min) -10/Mines (discovered 1 exit: [*Mat]) History --------- Turn | Location | Event 1 | -11/Scrapyard | Discovered new exit (range 3) 43 | -11/Scrapyard | Entered Materials 302 | -10/Materials | Build established: Mutant 375 | -10/Materials | Discovered new exit (range 5) 607 | -10/Materials | Core integrity fell below 50% 792 | -10/Materials | Discovered new exit (range 6) 834 | -10/Materials | Discovered new exit (range 15) 914 | -10/Materials | Entered Mines 967 | -10/Mines | Discovered new exit (range 11) 1121 | -10/Mines | Learned Materials terminal intel 1129 | -10/Mines | Assembled infested the area 1210 | -10/Mines | Core integrity fell below 20% 1220 | -10/Mines | System corruption reached 10% 1250 | -10/Mines | Lost 4 parts (1n1u2w) 1322 | -10/Mines | Destroyed by as-74440 with Assembled Maul Last Messages --------------- Overheating: Energy bleed (-59). Power failure, Ion Engine shutdown. Beam Cannon destroyed. System corrupted by crushing effect (+3). Overheating: Core damaged (-50). Lgt. Treads destroyed. Lgt. Armor Plating destroyed. System corrupted by crushing effect (+2). System corrupted by crushing effect (+5). Dropped Hcp. Storage Unit. System corrupted: Substantial component data lost. Dropped Lgt. Treads. Dropped Ion Engine. K-01 Serf destroyed. System corrupted: Energy discharge (-36). Dropped Ion Engine. Dropped Sml. Storage Unit. Acquired Com. Wheel. GDZ06IWD67KYJ9DS2#SZDAK7&R| Y#IAOBS System corrupted: Substantial component data lost. Map ----- +----------------------------------------------------+ | ?????## ##??# #?#% #?????? #????????####?? | | ?????# #### #??#%########???# #??????### ##? | | ????## %## ##?#%#???## ##??# #???#### ## | | ???## #?# #??## #??# #??## # | | ???# = ### ##?# ##?# #??# # | | ???# #?# ### #???# #? | | ???# # #??# # #????# ## | | #### ####### #### #???## # | | ## =%! ##?????# ##### | | % *## #??????# | | #### #??????##### = | | ###??#####??????????#=% !!%! ## # | | ####???????????????????##! *| #### # | | ????????????????????????## % #??# # | | ?????????????????????????# ! #??# # | | ?????????????????????????## ##??# # | | ??????????????????????????###*###???# """ ## | | ????????????????????????????#%#????## """ ## | | ????????????????????????????#=#???## """ # | | ????????????????????????????#!#####=| # | | ????????????????????????????#*%=!%=%! = | | ??????????????????????#######*#####% =% | | ??????????????????????#!%=!%%=!#??## ! | | ??????????????????????#%##### #???## | | ????????????????????????# ### #????#### | | ????????????????????????#@ ##%|#???????## ## | | ????????????????????????# a a* #????????# ?# | | ????????????????????##### % ####?????####?## # | | ????????????????????#% < #???????????# # | | ????????????????????### #??????????# # | | ??????????????????????# #??????????# | | ??????????????????????### ##??????????# | | ????????????????????????## ##???????????# | | ?????????????????????????### #????????????# | | ???????????????????????????## #????????????# | | ????????????????????????????# #????????????## | | ????????????????????????????## ##?????????????### | | ??????????????????????????????###????????????????? | | ?????????????????????????????????????????????????? | | ?????????????????????????????????????????????????? | | ?????????????????????????????????????????????????? | | ?????????????????????????????????????????????????? | | ?????????????????????????????????????????????????? | | ?????????????????????????????????????????????????? | | ?????????????????????????????????????????????????? | | ?????????????????????????????????????????????????? | | ?????????????????????????????????????????????????? | | ?????????????????????????????????????????????????? | | ?????????????????????????????????????????????????? | | ?????????????????????????????????????????????????? | +----------------------------------------------------+ Best States ------------- Heat Dissipation 25 Energy Generation 10 Energy Capacity 650 Matter Stores 300 Matter Capacity 300 Sight Range 16 Terrain Scan Density 10 Armor Coverage 150 Evasion (%) 50 Recoil Reduction 2 Item Schematics ----------------- None Robot Schematics ------------------ None Fabricated ------------ Nothing Alien Tech Used ----------------- None Achievements -------------- None Challenges ------------ None Game ------ Seed HardcellIntegrityLog Manual? 0 Play Time 00:37:44 Cumulative 178.8 hours Start 2020.08.01 @ 00:00:48 End 2020.08.01 @ 00:39:05 Sessions 1 Manual Loads 0 Difficulty Rogue Special Mode None Game No. 205 Rogue 205 Adventurer 0 Explorer 0 Win Type - Total 7 Types 5/0/2/0/0/0/0 Lore% 73 Gallery% 82 Achievement% 59 Wizard Run 0 Options --------- ASCII 0 Keyboard 1 Movement Numpad Keybinds 0 Fullscreen 1 Font 20/SmallcapsGlow Map View 66x50 Tactical HUD 1 Map Filters NONE Filters NONE Steam 1 RUN: ff55b69c-170f-4cf8-9b47-a8260ae7112d